[Event "*** SCC Grand Prix: Titled Tuesday Blitz"]
[Site "Chess.com"]
[Date "2020.10.06"]
[Round "2"]
[White "GlennTipton"]
[Black "NotFischer"]
[Result "0-1"]
[WhiteElo "2443"]
[BlackElo "2283"]
[TimeControl "180+1"]
[EndTime "10:16:11 PDT"]
[Termination "NotFischer won by checkmate"]

1. e4 {[%clk 0:02:59.1]} 1... d5 {[%clk 0:02:59.4]} 2. exd5 {[%clk 0:02:59.1]}
2... Nf6 {[%clk 0:02:59.4]} 3. d4 {[%clk 0:02:58.6]} 3... Bg4 {[%clk 0:02:58.9]}
4. f3 {[%clk 0:02:54.8]} 4... Bf5 {[%clk 0:02:58.8]} 5. c4 {[%clk 0:02:53]} 5...
e6 {[%clk 0:02:58.7]} 6. dxe6 {[%clk 0:02:51.4]} 6... Nc6 {[%clk 0:02:58.5]} 7.
Be3 {[%clk 0:02:45.9]} 7... Bb4+ {[%clk 0:02:56.8]} 8. Nc3 {[%clk 0:02:42.9]}
8... O-O {[%clk 0:02:55.9]} 9. Bd3 {[%clk 0:02:36.9]} 9... Nxd4 {[%clk
0:02:27.1]} 10. Bxf5 {[%clk 0:02:32.4]} 10... Nxf5 {[%clk 0:02:27.2]} 11. Qxd8
{[%clk 0:02:29.9]} 11... Raxd8 {[%clk 0:02:27.5]} 12. exf7+ {[%clk 0:02:30.8]}
12... Kxf7 {[%clk 0:02:26.2]} 13. Bd2 {[%clk 0:02:26.5]} 13... Rfe8+ {[%clk
0:02:19.1]} 14. Nge2 {[%clk 0:02:25.4]} 14... Nd4 {[%clk 0:02:19]} 15. O-O-O
{[%clk 0:02:04.5]} 15... Rxe2 {[%clk 0:01:30.5]} 16. Nxe2 {[%clk 0:02:03.5]}
16... Nxe2+ {[%clk 0:01:30.6]} 17. Kc2 {[%clk 0:02:03.8]} 17... Nd4+ {[%clk
0:01:28.5]} 18. Kb1 {[%clk 0:02:02.6]} 18... Bxd2 {[%clk 0:01:24.6]} 19. Rxd2
{[%clk 0:02:03.5]} 19... c5 {[%clk 0:01:25.4]} 20. Re1 {[%clk 0:02:01.4]} 20...
Rd7 {[%clk 0:01:18.3]} 21. b4 {[%clk 0:01:57.6]} 21... b6 {[%clk 0:01:17.9]} 22.
bxc5 {[%clk 0:01:53.5]} 22... bxc5 {[%clk 0:01:18.8]} 23. Re5 {[%clk 0:01:53.4]}
23... Rc7 {[%clk 0:01:19]} 24. Rb2 {[%clk 0:01:47.3]} 24... Nd7 {[%clk
0:01:18.3]} 25. Rd5 {[%clk 0:01:41.1]} 25... Nb6 {[%clk 0:01:18.1]} 26. Rd8
{[%clk 0:01:31.4]} 26... Nxc4 {[%clk 0:01:18]} 27. Rbb8 {[%clk 0:01:30.8]} 27...
Re7 {[%clk 0:00:59.5]} 28. Rf8+ {[%clk 0:01:27.2]} 28... Kg6 {[%clk 0:00:58.4]}
29. Rbe8 {[%clk 0:01:20.4]} 29... Rb7+ {[%clk 0:00:55.5]} 30. Kc1 {[%clk
0:01:15.9]} 30... Rb2 {[%clk 0:00:51]} 31. Rc8 {[%clk 0:01:10.5]} 31... Rc2+
{[%clk 0:00:44.9]} 32. Kd1 {[%clk 0:01:09]} 32... Ne3+ {[%clk 0:00:44.5]} 33.
Ke1 {[%clk 0:01:08.2]} 33... Re2# {[%clk 0:00:44.4]} 0-1

[Event "*** SCC Grand Prix: Titled Tuesday Blitz"]
[Site "Chess.com"]
[Date "2020.10.06"]
[Round "2"]
[White "Rital44"]
[Black "akashcheck"]
[Result "1-0"]
[WhiteElo "2424"]
[BlackElo "2212"]
[TimeControl "180+1"]
[EndTime "10:16:14 PDT"]
[Termination "Rital44 won on time"]

1. e4 {[%clk 0:03:00.9]} 1... e5 {[%clk 0:02:59.5]} 2. Nf3 {[%clk 0:03:00.8]}
2... Nc6 {[%clk 0:02:59.6]} 3. Bb5 {[%clk 0:03:01.4]} 3... a6 {[%clk 0:02:59.4]}
4. Ba4 {[%clk 0:03:01.5]} 4... Nf6 {[%clk 0:02:59.4]} 5. O-O {[%clk 0:03:01.1]}
5... Be7 {[%clk 0:02:59.1]} 6. Re1 {[%clk 0:02:59.6]} 6... b5 {[%clk 0:02:58.9]}
7. Bb3 {[%clk 0:02:59.4]} 7... d6 {[%clk 0:02:59.8]} 8. h3 {[%clk 0:02:57.8]}
8... O-O {[%clk 0:03:00]} 9. d3 {[%clk 0:02:55.2]} 9... Na5 {[%clk 0:02:58.4]}
10. c3 {[%clk 0:02:53.2]} 10... Nxb3 {[%clk 0:02:57.4]} 11. axb3 {[%clk
0:02:54.1]} 11... c5 {[%clk 0:02:57.4]} 12. Nbd2 {[%clk 0:02:53.6]} 12... Bb7
{[%clk 0:02:57.5]} 13. Nf1 {[%clk 0:02:53.6]} 13... Re8 {[%clk 0:02:57.7]} 14.
Ng3 {[%clk 0:02:53.7]} 14... h6 {[%clk 0:02:58.2]} 15. Nf5 {[%clk 0:02:53.9]}
15... Bf8 {[%clk 0:02:58.5]} 16. N3h4 {[%clk 0:02:54]} 16... Kh7 {[%clk
0:02:58.1]} 17. Qf3 {[%clk 0:02:53.6]} 17... g6 {[%clk 0:02:50.5]} 18. g4 {[%clk
0:02:50.7]} 18... d5 {[%clk 0:02:40.4]} 19. Nxh6 {[%clk 0:02:47.4]} 19... Bxh6
{[%clk 0:02:33.8]} 20. Bxh6 {[%clk 0:02:41.5]} 20... Kxh6 {[%clk 0:02:31.6]} 21.
g5+ {[%clk 0:02:28.7]} 21... Kg7 {[%clk 0:02:30.6]} 22. gxf6+ {[%clk 0:02:27.3]}
22... Qxf6 {[%clk 0:02:31.5]} 23. Qxf6+ {[%clk 0:02:27.4]} 23... Kxf6 {[%clk
0:02:31.5]} 24. f3 {[%clk 0:02:26.8]} 24... d4 {[%clk 0:02:20.9]} 25. Kf2 {[%clk
0:02:23.6]} 25... Rh8 {[%clk 0:02:17.8]} 26. Kg3 {[%clk 0:02:23.3]} 26... Rh5
{[%clk 0:02:03.6]} 27. Ng2 {[%clk 0:02:22.3]} 27... Rah8 {[%clk 0:01:57.9]} 28.
Rh1 {[%clk 0:02:16.5]} 28... Bc8 {[%clk 0:01:37.3]} 29. h4 {[%clk 0:02:16.4]}
29... g5 {[%clk 0:01:32.8]} 30. hxg5+ {[%clk 0:02:16.1]} 30... Rxg5+ {[%clk
0:01:31.1]} 31. Kf2 {[%clk 0:02:16.3]} 31... Rhg8 {[%clk 0:01:10.7]} 32. Rh6+
{[%clk 0:02:15.3]} 32... Ke7 {[%clk 0:01:07]} 33. Nh4 {[%clk 0:02:14.8]} 33...
f6 {[%clk 0:00:46.5]} 34. b4 {[%clk 0:02:08.9]} 34... cxb4 {[%clk 0:00:23.9]}
35. cxb4 {[%clk 0:02:07.9]} 35... R5g7 {[%clk 0:00:16.2]} 36. Rc1 {[%clk
0:02:07]} 36... Bd7 {[%clk 0:00:12.8]} 37. Rc7 {[%clk 0:02:05.3]} 37... Kd6
{[%clk 0:00:09]} 38. Ra7 {[%clk 0:02:03.2]} 38... Rc8 {[%clk 0:00:03.5]} 39.
Rxf6+ {[%clk 0:02:02.7]} 39... Ke7 {[%clk 0:00:02.1]} 40. Nf5+ {[%clk
0:02:03.6]} 40... Kxf6 {[%clk 0:00:01.7]} 41. Rxa6+ {[%clk 0:02:02.6]} 1-0

[Event "*** SCC Grand Prix: Titled Tuesday Blitz"]
[Site "Chess.com"]
[Date "2020.10.06"]
[Round "2"]
[White "MiroVlasenko"]
[Black "ChessicallyInclined"]
[Result "1-0"]
[WhiteElo "2795"]
[BlackElo "2532"]
[TimeControl "180+1"]
[EndTime "10:16:16 PDT"]
[Termination "MiroVlasenko won by resignation"]

1. d4 {[%clk 0:03:00]} 1... Nf6 {[%clk 0:03:00.4]} 2. Bg5 {[%clk 0:03:00.1]}
2... e6 {[%clk 0:03:00.4]} 3. Nf3 {[%clk 0:02:58.9]} 3... h6 {[%clk 0:03:00.5]}
4. Bh4 {[%clk 0:02:58.8]} 4... d5 {[%clk 0:02:59.5]} 5. e3 {[%clk 0:02:58.6]}
5... Nbd7 {[%clk 0:02:59.8]} 6. Nbd2 {[%clk 0:02:58.3]} 6... Be7 {[%clk
0:03:00.2]} 7. Bd3 {[%clk 0:02:56.4]} 7... c5 {[%clk 0:03:00.5]} 8. c3 {[%clk
0:02:56.1]} 8... b6 {[%clk 0:03:01]} 9. O-O {[%clk 0:02:53.9]} 9... Bb7 {[%clk
0:03:01.4]} 10. Ne5 {[%clk 0:02:52.8]} 10... Nxe5 {[%clk 0:03:00.8]} 11. dxe5
{[%clk 0:02:52.7]} 11... Ne4 {[%clk 0:02:56.3]} 12. Bb5+ {[%clk 0:02:48.6]}
12... Kf8 {[%clk 0:02:55.4]} 13. Bxe7+ {[%clk 0:02:45.2]} 13... Qxe7 {[%clk
0:02:56.3]} 14. Nxe4 {[%clk 0:02:42.6]} 14... dxe4 {[%clk 0:02:51.6]} 15. Qg4
{[%clk 0:02:33]} 15... a6 {[%clk 0:02:41.3]} 16. Ba4 {[%clk 0:02:30.9]} 16...
Qg5 {[%clk 0:02:35.6]} 17. Qf4 {[%clk 0:02:30.5]} 17... Ke7 {[%clk 0:02:29.1]}
18. Rad1 {[%clk 0:02:26.3]} 18... Rhd8 {[%clk 0:02:26.1]} 19. Bc2 {[%clk
0:02:24.4]} 19... Qxf4 {[%clk 0:02:02.4]} 20. exf4 {[%clk 0:02:23.9]} 20... f5
{[%clk 0:02:02.3]} 21. exf6+ {[%clk 0:02:22.2]} 21... gxf6 {[%clk 0:02:01.1]}
22. g3 {[%clk 0:02:16.6]} 22... f5 {[%clk 0:01:35]} 23. Rfe1 {[%clk 0:02:14.5]}
23... Kf6 {[%clk 0:01:22]} 24. Kf1 {[%clk 0:02:13.3]} 24... e5 {[%clk
0:01:20.6]} 25. fxe5+ {[%clk 0:02:12.6]} 25... Kxe5 {[%clk 0:01:21.5]} 26. f3
{[%clk 0:02:11.3]} 26... Rxd1 {[%clk 0:01:19.5]} 27. Bxd1 {[%clk 0:02:10.5]}
27... Rd8 {[%clk 0:01:10.1]} 28. Ke2 {[%clk 0:02:06.4]} 28... Bc6 {[%clk
0:00:47.6]} 29. b3 {[%clk 0:02:00.2]} 29... Rd3 {[%clk 0:00:41.4]} 30. fxe4
{[%clk 0:01:57.2]} 30... fxe4 {[%clk 0:00:38.6]} 31. c4 {[%clk 0:01:56.1]} 31...
Kd4 {[%clk 0:00:38.8]} 32. Bc2 {[%clk 0:01:52.4]} 32... Re3+ {[%clk 0:00:38.9]}
33. Kd2 {[%clk 0:01:52]} 33... Rxe1 {[%clk 0:00:39.2]} 34. Kxe1 {[%clk 0:01:52]}
34... Kc3 {[%clk 0:00:39.6]} 35. Bd1 {[%clk 0:01:52.2]} 35... Kb2 {[%clk
0:00:33.6]} 36. a4 {[%clk 0:01:52.2]} 36... Kc3 {[%clk 0:00:31]} 37. Ke2 {[%clk
0:01:50.2]} 37... Kd4 {[%clk 0:00:31.4]} 38. g4 {[%clk 0:01:48.6]} 38... e3
{[%clk 0:00:29.8]} 39. h4 {[%clk 0:01:48.1]} 39... Be4 {[%clk 0:00:29.1]} 40. g5
{[%clk 0:01:47.5]} 40... hxg5 {[%clk 0:00:29.4]} 41. hxg5 {[%clk 0:01:47.2]}
41... Bg6 {[%clk 0:00:28.6]} 42. Ke1 {[%clk 0:01:45.1]} 42... Ke4 {[%clk
0:00:26.5]} 43. Bc2+ {[%clk 0:01:44.4]} 1-0

[Event "*** SCC Grand Prix: Titled Tuesday Blitz"]
[Site "Chess.com"]
[Date "2020.10.06"]
[Round "2"]
[White "MFBerna"]
[Black "Orest_Vovk"]
[Result "1/2-1/2"]
[WhiteElo "2288"]
[BlackElo "2460"]
[TimeControl "180+1"]
[EndTime "10:16:16 PDT"]
[Termination "Game drawn by repetition"]

1. e4 {[%clk 0:03:00.9]} 1... Nc6 {[%clk 0:02:55.8]} 2. Nf3 {[%clk 0:02:57.8]}
2... d5 {[%clk 0:02:55]} 3. exd5 {[%clk 0:02:58.7]} 3... Qxd5 {[%clk 0:02:55]}
4. Nc3 {[%clk 0:02:58.9]} 4... Qa5 {[%clk 0:02:55.1]} 5. h3 {[%clk 0:02:57.4]}
5... g5 {[%clk 0:02:54.5]} 6. Bc4 {[%clk 0:02:47.2]} 6... g4 {[%clk 0:02:50.7]}
7. hxg4 {[%clk 0:02:48.1]} 7... Bxg4 {[%clk 0:02:49.7]} 8. Bb5 {[%clk
0:02:28.4]} 8... O-O-O {[%clk 0:02:41.5]} 9. Bxc6 {[%clk 0:02:28.4]} 9... bxc6
{[%clk 0:02:41.7]} 10. d3 {[%clk 0:02:27.5]} 10... Nf6 {[%clk 0:02:38.2]} 11.
Bd2 {[%clk 0:02:19.7]} 11... Qf5 {[%clk 0:02:30.2]} 12. Qe2 {[%clk 0:02:14.2]}
12... Bxf3 {[%clk 0:02:26.7]} 13. Qxf3 {[%clk 0:02:15.1]} 13... Qxf3 {[%clk
0:02:26]} 14. gxf3 {[%clk 0:02:16]} 14... Nd5 {[%clk 0:02:18.3]} 15. Ke2 {[%clk
0:02:15.5]} 15... Bg7 {[%clk 0:02:17.1]} 16. Rag1 {[%clk 0:02:11.3]} 16... Nxc3+
{[%clk 0:02:14.3]} 17. bxc3 {[%clk 0:02:12.2]} 17... Bf6 {[%clk 0:02:13.9]} 18.
c4 {[%clk 0:02:06]} 18... h5 {[%clk 0:02:12.4]} 19. Bg5 {[%clk 0:02:00.5]} 19...
Rdg8 {[%clk 0:01:53.4]} 20. Bxf6 {[%clk 0:01:59.9]} 20... Rxg1 {[%clk
0:01:50.3]} 21. Rxg1 {[%clk 0:01:57.7]} 21... exf6 {[%clk 0:01:49.9]} 22. Ke3
{[%clk 0:01:53.4]} 22... Kd7 {[%clk 0:01:43.3]} 23. Kf4 {[%clk 0:01:54.3]} 23...
Rb8 {[%clk 0:01:27.5]} 24. Ke3 {[%clk 0:01:41.6]} 24... Rb2 {[%clk 0:01:24]} 25.
Kd2 {[%clk 0:01:42]} 25... Rxa2 {[%clk 0:01:23.7]} 26. Rh1 {[%clk 0:01:42.9]}
26... Ra5 {[%clk 0:01:23.7]} 27. d4 {[%clk 0:01:43.3]} 27... Rg5 {[%clk
0:01:15.4]} 28. Ke3 {[%clk 0:01:41.2]} 28... c5 {[%clk 0:01:13.7]} 29. c3 {[%clk
0:01:37.7]} 29... cxd4+ {[%clk 0:01:01.2]} 30. cxd4 {[%clk 0:01:38.6]} 30... Ra5
{[%clk 0:01:00.7]} 31. f4 {[%clk 0:01:39]} 31... f5 {[%clk 0:00:48.4]} 32. Rg1
{[%clk 0:01:39.3]} 32... Ra3+ {[%clk 0:00:46.5]} 33. Kd2 {[%clk 0:01:37.3]}
33... Rf3 {[%clk 0:00:45.2]} 34. Rg5 {[%clk 0:01:35.6]} 34... Rxf4 {[%clk
0:00:41.3]} 35. Ke3 {[%clk 0:01:36.5]} 35... Re4+ {[%clk 0:00:35.6]} 36. Kd3
{[%clk 0:01:37]} 36... Rf4 {[%clk 0:00:16.1]} 37. Ke3 {[%clk 0:01:36.3]} 37...
Re4+ {[%clk 0:00:16.1]} 38. Kd3 {[%clk 0:01:36.8]} 38... Rf4 {[%clk 0:00:14.7]}
39. Ke3 {[%clk 0:01:37.3]} 1/2-1/2

[Event "*** SCC Grand Prix: Titled Tuesday Blitz"]
[Site "Chess.com"]
[Date "2020.10.06"]
[Round "2"]
[White "TomasKapitanchuk"]
[Black "Khnykin_Nikolay"]
[Result "1-0"]
[WhiteElo "2386"]
[BlackElo "2063"]
[TimeControl "180+1"]
[EndTime "10:16:20 PDT"]
[Termination "TomasKapitanchuk won by resignation"]

1. e4 {[%clk 0:03:00.9]} 1... e6 {[%clk 0:02:58.2]} 2. d4 {[%clk 0:03:00.8]}
2... d5 {[%clk 0:02:57.4]} 3. Nd2 {[%clk 0:03:01.4]} 3... c5 {[%clk 0:02:56.2]}
4. Ngf3 {[%clk 0:03:00.4]} 4... Qb6 {[%clk 0:02:54.3]} 5. exd5 {[%clk
0:02:58.4]} 5... exd5 {[%clk 0:02:53.5]} 6. Be2 {[%clk 0:02:58.5]} 6... Nf6
{[%clk 0:02:51.9]} 7. O-O {[%clk 0:02:55.1]} 7... Be7 {[%clk 0:02:52]} 8. dxc5
{[%clk 0:02:55.3]} 8... Bxc5 {[%clk 0:02:51.9]} 9. Nb3 {[%clk 0:02:55.1]} 9...
Bd6 {[%clk 0:02:49.9]} 10. Be3 {[%clk 0:02:51.1]} 10... Qc7 {[%clk 0:02:49.1]}
11. h3 {[%clk 0:02:52]} 11... O-O {[%clk 0:02:47.4]} 12. Nbd4 {[%clk 0:02:51.4]}
12... a6 {[%clk 0:02:45.5]} 13. Bd3 {[%clk 0:02:46.3]} 13... b6 {[%clk
0:02:30.5]} 14. Nf5 {[%clk 0:02:44.4]} 14... Bb7 {[%clk 0:02:10]} 15. Nxd6
{[%clk 0:02:43.3]} 15... Qxd6 {[%clk 0:02:09.6]} 16. c3 {[%clk 0:02:41.5]} 16...
Nbd7 {[%clk 0:02:04.5]} 17. Bd4 {[%clk 0:02:41.3]} 17... Qc7 {[%clk 0:01:59.5]}
18. Re1 {[%clk 0:02:39.5]} 18... Rfe8 {[%clk 0:01:57.5]} 19. Qd2 {[%clk
0:02:38.8]} 19... Ne4 {[%clk 0:01:52.8]} 20. Qc2 {[%clk 0:02:34.6]} 20... Ndc5
{[%clk 0:01:47.5]} 21. Bf1 {[%clk 0:02:33]} 21... Qf4 {[%clk 0:01:43.4]} 22.
Rad1 {[%clk 0:02:24.7]} 22... Re6 {[%clk 0:01:40.9]} 23. Be3 {[%clk 0:02:19.8]}
23... Qf5 {[%clk 0:01:32.2]} 24. Nd4 {[%clk 0:02:17.9]} 24... Qh5 {[%clk
0:01:27.9]} 25. Nxe6 {[%clk 0:02:16.2]} 25... fxe6 {[%clk 0:01:27.5]} 26. f3
{[%clk 0:02:12.9]} 26... Ng3 {[%clk 0:01:20]} 27. Bxc5 {[%clk 0:02:12.1]} 27...
bxc5 {[%clk 0:01:19.5]} 28. Rxe6 {[%clk 0:02:12.6]} 28... Qg5 {[%clk 0:01:11.4]}
29. Rde1 {[%clk 0:02:04.1]} 29... Rf8 {[%clk 0:00:37.9]} 30. Re8 {[%clk
0:02:01.6]} 30... Bc8 {[%clk 0:00:35.6]} 31. Rxf8+ {[%clk 0:01:57.2]} 31... Kxf8
{[%clk 0:00:34.6]} 32. Qxh7 {[%clk 0:01:57.3]} 32... Bf5 {[%clk 0:00:28.8]} 33.
Qh8+ {[%clk 0:01:56.1]} 33... Kf7 {[%clk 0:00:29]} 34. Qe8+ {[%clk 0:01:55.1]}
34... Kf6 {[%clk 0:00:28.3]} 35. Qe7+ {[%clk 0:01:49.5]} 35... Kg6 {[%clk
0:00:27.1]} 36. Qxg5+ {[%clk 0:01:50.4]} 36... Kxg5 {[%clk 0:00:28]} 37. Bxa6
{[%clk 0:01:50.9]} 37... d4 {[%clk 0:00:23.1]} 38. cxd4 {[%clk 0:01:49.8]} 38...
cxd4 {[%clk 0:00:24]} 39. Kf2 {[%clk 0:01:47.5]} 39... d3 {[%clk 0:00:23.9]} 40.
Kxg3 {[%clk 0:01:46.8]} 40... d2 {[%clk 0:00:23.5]} 41. Rd1 {[%clk 0:01:47.1]}
41... Be6 {[%clk 0:00:19.7]} 42. Rxd2 {[%clk 0:01:45.9]} 42... Bxa2 {[%clk
0:00:20.1]} 43. Rd6 {[%clk 0:01:45.1]} 43... Bf7 {[%clk 0:00:17.5]} 44. f4+
{[%clk 0:01:44.6]} 1-0

[Event "*** SCC Grand Prix: Titled Tuesday Blitz"]
[Site "Chess.com"]
[Date "2020.10.06"]
[Round "2"]
[White "SilviusTiberius"]
[Black "ChronicUnhappiness"]
[Result "1-0"]
[WhiteElo "2654"]
[BlackElo "2281"]
[TimeControl "180+1"]
[EndTime "10:16:22 PDT"]
[Termination "SilviusTiberius won by resignation"]

1. e4 {[%clk 0:03:00.9]} 1... c5 {[%clk 0:02:59.3]} 2. Nf3 {[%clk 0:03:01.1]}
2... Nc6 {[%clk 0:02:59.4]} 3. d4 {[%clk 0:03:01.4]} 3... cxd4 {[%clk
0:02:59.1]} 4. Nxd4 {[%clk 0:03:02.3]} 4... Nf6 {[%clk 0:02:59.4]} 5. Nc3 {[%clk
0:03:02.7]} 5... e5 {[%clk 0:02:59.7]} 6. Ndb5 {[%clk 0:03:03.2]} 6... d6 {[%clk
0:03:00.1]} 7. Nd5 {[%clk 0:03:03.6]} 7... Nxd5 {[%clk 0:02:59.6]} 8. exd5
{[%clk 0:03:04.5]} 8... Nb8 {[%clk 0:02:59.8]} 9. Be2 {[%clk 0:03:02.9]} 9...
Be7 {[%clk 0:02:59.5]} 10. a4 {[%clk 0:03:02.1]} 10... a6 {[%clk 0:02:48.5]} 11.
Na3 {[%clk 0:03:01.6]} 11... a5 {[%clk 0:02:48.6]} 12. Nc4 {[%clk 0:02:59.9]}
12... O-O {[%clk 0:02:47.4]} 13. O-O {[%clk 0:02:58.8]} 13... b6 {[%clk
0:02:47.6]} 14. f4 {[%clk 0:02:57.7]} 14... exf4 {[%clk 0:02:43.3]} 15. Bxf4
{[%clk 0:02:57.3]} 15... Ba6 {[%clk 0:02:42.3]} 16. Bd3 {[%clk 0:02:54.9]} 16...
Bxc4 {[%clk 0:02:38.1]} 17. Bxc4 {[%clk 0:02:54.7]} 17... Bg5 {[%clk 0:02:32.8]}
18. Bg3 {[%clk 0:02:49.8]} 18... Qc7 {[%clk 0:01:55.5]} 19. Qg4 {[%clk 0:02:39]}
19... Be3+ {[%clk 0:01:03.3]} 20. Kh1 {[%clk 0:02:38]} 20... Nd7 {[%clk
0:01:03.6]} 21. Bd3 {[%clk 0:02:35.9]} 21... g6 {[%clk 0:00:57.5]} 22. Rae1
{[%clk 0:02:29.3]} 22... Bh6 {[%clk 0:00:23.6]} 23. Re7 {[%clk 0:02:22.4]} 23...
Nf6 {[%clk 0:00:14.6]} 24. Qe2 {[%clk 0:02:10.7]} 24... Rfe8 {[%clk 0:00:12.7]}
25. Rxc7 {[%clk 0:02:09.2]} 25... Rxe2 {[%clk 0:00:12.9]} 26. Bxe2 {[%clk
0:02:09.5]} 26... Nxd5 {[%clk 0:00:13.5]} 27. Rcxf7 {[%clk 0:02:02.8]} 27... Ne3
{[%clk 0:00:12.7]} 28. R1f3 {[%clk 0:01:57.6]} 28... Nxc2 {[%clk 0:00:12.1]} 29.
Bc4 {[%clk 0:01:56]} 29... Kh8 {[%clk 0:00:12.4]} 30. Bxd6 {[%clk 0:01:54.8]}
30... Bg7 {[%clk 0:00:10.4]} 31. Rf2 {[%clk 0:01:24.3]} 31... Nd4 {[%clk
0:00:08.8]} 32. Rxg7 {[%clk 0:01:23.1]} 1-0

[Event "*** SCC Grand Prix: Titled Tuesday Blitz"]
[Site "Chess.com"]
[Date "2020.10.06"]
[Round "2"]
[White "sotochess"]
[Black "rududuyk"]
[Result "1-0"]
[WhiteElo "2402"]
[BlackElo "2136"]
[TimeControl "180+1"]
[EndTime "10:16:22 PDT"]
[Termination "sotochess won by resignation"]

1. e4 {[%clk 0:03:00]} 1... e6 {[%clk 0:02:59.9]} 2. Qe2 {[%clk 0:02:55.6]} 2...
c5 {[%clk 0:02:58.6]} 3. Nf3 {[%clk 0:02:55.4]} 3... Nc6 {[%clk 0:02:58.4]} 4.
g3 {[%clk 0:02:55.5]} 4... g6 {[%clk 0:02:57.6]} 5. Bg2 {[%clk 0:02:55.4]} 5...
Bg7 {[%clk 0:02:56.8]} 6. O-O {[%clk 0:02:55.8]} 6... Nge7 {[%clk 0:02:56.3]} 7.
Rd1 {[%clk 0:02:55.5]} 7... e5 {[%clk 0:02:55.7]} 8. c3 {[%clk 0:02:54.9]} 8...
O-O {[%clk 0:02:50.1]} 9. Na3 {[%clk 0:02:49.1]} 9... d6 {[%clk 0:02:46.2]} 10.
Nc2 {[%clk 0:02:46.6]} 10... f5 {[%clk 0:02:45.6]} 11. d3 {[%clk 0:02:44.3]}
11... h6 {[%clk 0:02:37.6]} 12. Rb1 {[%clk 0:02:38.6]} 12... g5 {[%clk
0:02:16.1]} 13. b4 {[%clk 0:02:36.7]} 13... f4 {[%clk 0:02:12.4]} 14. Nd2 {[%clk
0:02:26.7]} 14... Be6 {[%clk 0:01:48.1]} 15. bxc5 {[%clk 0:02:16.4]} 15... dxc5
{[%clk 0:01:47.2]} 16. Rxb7 {[%clk 0:02:15.8]} 16... Qc8 {[%clk 0:01:46.7]} 17.
Rb2 {[%clk 0:02:13.1]} 17... g4 {[%clk 0:01:42.1]} 18. Bf1 {[%clk 0:02:03.7]}
18... Qe8 {[%clk 0:01:12.5]} 19. Nb3 {[%clk 0:02:01.4]} 19... c4 {[%clk
0:01:08.1]} 20. Nc5 {[%clk 0:01:58.1]} 20... cxd3 {[%clk 0:00:53.7]} 21. Qxd3
{[%clk 0:01:57.9]} 21... Bc8 {[%clk 0:00:48.4]} 22. Nb4 {[%clk 0:01:47.3]} 22...
Nxb4 {[%clk 0:00:35.2]} 23. Rxb4 {[%clk 0:01:46.4]} 23... Qf7 {[%clk 0:00:34.1]}
24. Qc4 {[%clk 0:01:42.1]} 24... fxg3 {[%clk 0:00:30.3]} 25. hxg3 {[%clk
0:01:39.9]} 25... Nc6 {[%clk 0:00:29.1]} 26. Qxf7+ {[%clk 0:01:39.2]} 26... Rxf7
{[%clk 0:00:28.5]} 27. Rb2 {[%clk 0:01:36.5]} 27... Rc7 {[%clk 0:00:22.4]} 28.
Be3 {[%clk 0:01:34.3]} 28... Na5 {[%clk 0:00:20.2]} 29. Rb5 {[%clk 0:01:33.4]}
29... Nb7 {[%clk 0:00:17.3]} 30. Bc4+ {[%clk 0:01:29]} 30... Kh8 {[%clk
0:00:16.5]} 31. Bd5 {[%clk 0:01:29]} 31... Nd6 {[%clk 0:00:08.5]} 32. Rb2 {[%clk
0:01:25.6]} 1-0

[Event "*** SCC Grand Prix: Titled Tuesday Blitz"]
[Site "Chess.com"]
[Date "2020.10.06"]
[Round "2"]
[White "Azerichess"]
[Black "Beltraxtor"]
[Result "1-0"]
[WhiteElo "2909"]
[BlackElo "2579"]
[TimeControl "180+1"]
[EndTime "10:16:25 PDT"]
[Termination "Azerichess won by resignation"]

1. d4 {[%clk 0:03:00.9]} 1... d5 {[%clk 0:02:59.6]} 2. c4 {[%clk 0:03:01.1]}
2... c6 {[%clk 0:03:00.1]} 3. Nf3 {[%clk 0:03:00.4]} 3... Nf6 {[%clk 0:02:59.8]}
4. Qb3 {[%clk 0:03:00.8]} 4... dxc4 {[%clk 0:02:56.6]} 5. Qxc4 {[%clk
0:03:01.7]} 5... Bf5 {[%clk 0:02:57.2]} 6. g3 {[%clk 0:03:00.8]} 6... e6 {[%clk
0:02:54.6]} 7. Bg2 {[%clk 0:03:00.6]} 7... Nbd7 {[%clk 0:02:55.2]} 8. O-O {[%clk
0:03:00.7]} 8... Be7 {[%clk 0:02:54.5]} 9. e3 {[%clk 0:02:55.9]} 9... O-O {[%clk
0:02:47.5]} 10. Qe2 {[%clk 0:02:55.4]} 10... Qa5 {[%clk 0:02:36.4]} 11. Nc3
{[%clk 0:02:49.1]} 11... Ne4 {[%clk 0:02:31.7]} 12. Bd2 {[%clk 0:02:48.8]} 12...
Nxd2 {[%clk 0:02:13.6]} 13. Nxd2 {[%clk 0:02:49.7]} 13... e5 {[%clk 0:02:01.2]}
14. Nc4 {[%clk 0:02:41.8]} 14... Qa6 {[%clk 0:01:45.8]} 15. Nxe5 {[%clk
0:02:38.5]} 15... Qxe2 {[%clk 0:01:37]} 16. Nxe2 {[%clk 0:02:39.4]} 16... Nxe5
{[%clk 0:01:37.6]} 17. dxe5 {[%clk 0:02:39.7]} 17... Bd3 {[%clk 0:01:38.3]} 18.
Rfe1 {[%clk 0:02:39.9]} 18... Bxe2 {[%clk 0:01:36.1]} 19. Rxe2 {[%clk
0:02:40.1]} 19... Rfd8 {[%clk 0:01:36.8]} 20. f4 {[%clk 0:02:37]} 20... Rd7
{[%clk 0:01:19.2]} 21. Bh3 {[%clk 0:02:34.9]} 21... Rd5 {[%clk 0:01:18.7]} 22.
Bg2 {[%clk 0:02:34.9]} 22... Rd7 {[%clk 0:01:18.5]} 23. a3 {[%clk 0:02:34.2]}
23... a5 {[%clk 0:01:16]} 24. Kf2 {[%clk 0:02:30.8]} 24... Rad8 {[%clk
0:01:15.8]} 25. Be4 {[%clk 0:02:29.6]} 25... g6 {[%clk 0:01:13.5]} 26. Rc1
{[%clk 0:02:28.9]} 26... Rd2 {[%clk 0:01:00]} 27. Ke1 {[%clk 0:02:26.5]} 27...
R2d7 {[%clk 0:00:43.2]} 28. Rec2 {[%clk 0:02:25.2]} 28... Kf8 {[%clk 0:00:41.9]}
29. Ke2 {[%clk 0:02:25.4]} 29... Ke8 {[%clk 0:00:39.9]} 30. g4 {[%clk
0:02:23.1]} 30... Kf8 {[%clk 0:00:38.1]} 31. Rh1 {[%clk 0:02:15.8]} 31... f6
{[%clk 0:00:14.6]} 32. e6 {[%clk 0:02:10.7]} 32... Rd6 {[%clk 0:00:13.9]} 33. f5
{[%clk 0:02:11.2]} 33... g5 {[%clk 0:00:13.3]} 34. h4 {[%clk 0:02:11.1]} 34...
Kg7 {[%clk 0:00:12.2]} 35. Kf3 {[%clk 0:02:06.6]} 35... h6 {[%clk 0:00:12.1]}
36. Rch2 {[%clk 0:02:04.4]} 36... Rh8 {[%clk 0:00:10.1]} 37. Bc2 {[%clk
0:01:59.6]} 37... b6 {[%clk 0:00:05.6]} 38. e4 {[%clk 0:01:57.1]} 38... c5
{[%clk 0:00:05.4]} 39. hxg5 {[%clk 0:01:56.1]} 39... fxg5 {[%clk 0:00:05.2]} 40.
e5 {[%clk 0:01:56.6]} 40... Rd4 {[%clk 0:00:04.5]} 41. f6+ {[%clk 0:01:56.7]}
41... Bxf6 {[%clk 0:00:04.7]} 42. exf6+ {[%clk 0:01:57.6]} 42... Kxf6 {[%clk
0:00:05.3]} 43. Rxh6+ {[%clk 0:01:57.8]} 43... Rxh6 {[%clk 0:00:06.2]} 44. Rxh6+
{[%clk 0:01:58.1]} 44... Ke7 {[%clk 0:00:07.1]} 45. Bf5 {[%clk 0:01:57.5]} 1-0